bitfinex/quotes_SOLUSD_20250728
["timestamp","ask_amount","ask_price","bid_price","bid_amount"]
[1753707673059,14.6972276,192.97,192.94,0.65]
[1753707673240,10.85762242,192.95,192.94,0.65]
[1753707673470,14.6972276,192.95,192.93,1e-08]
[1753707673650,31.48191157,192.94,192.93,1e-08]
[1753707673846,51.6372276,192.94,192.93,1e-08]
[1753707674046,51.6372276,192.94,192.93,0.65000001]
[1753707674047,3.83960518,192.94,192.93,0.65000001]
[1753707674244,3.83960518,192.96,192.93,0.65000001]
[1753707674465,3.83960518,192.95,192.93,0.65000001]
[1753707674778,3.83960518,192.94,192.93,0.65000001]
[1753707674944,3.83960518,192.95,192.94,0.65]
[1753707675144,3.83424898,192.95,192.94,0.65]
[1753707675540,16.78468397,192.94,192.93,1e-08]
[1753707675744,31.47655537,192.94,192.93,1e-08]
[1753707675943,36.6595138,192.94,192.93,1e-08]
[1753707676939,25.80189138,192.94,192.93,1e-08]
[1753707677142,36.6595138,192.94,192.93,1e-08]
[1753707677358,14.6918714,192.94,192.93,1e-08]
[1753707677568,19.87482983,192.94,192.93,1e-08]
[1753707678077,56.85482983,192.94,192.93,1e-08]
[1753707678285,18.52332631,192.94,192.93,0.65000001]
[1753707678578,14.6918714,192.94,192.93,0.65000001]
[1753707679467,14.6918714,192.94,192.93,1e-08]
[1753707680437,9.01720741,192.94,192.93,1e-08]
[1753707680634,14.6918714,192.94,192.93,1e-08]
[1753707681277,19.87482983,192.94,192.93,1e-08]
[1753707681582,20.55482983,192.94,192.93,1e-08]
[1753707681953,14.6918714,192.94,192.93,0.65000001]
[1753707682141,3.83424898,192.94,192.93,0.65000001]
[1753707682773,0.71,193.0,192.93,16.6908495]
[1753707682774,10.85762242,192.98,192.93,16.6908495]
[1753707682968,0.03,193.0,192.93,16.6908495]
[1753707682969,3.82835681,192.97,192.96,10.85762242]
[1753707683166,0.03,193.0,192.96,10.85762242]
[1753707683347,3.85884972,193.0,192.97,10.85762242]
[1753707683556,3.82884972,192.99,192.97,10.85762242]
[1753707683746,0.03,193.0,192.98,0.65]
[1753707684146,0.03,193.0,192.99,10.85762242]
[1753707684563,0.03,193.0,192.99,16.68923804]
[1753707685973,0.03,193.0,192.99,0.65]
[1753707686473,10.88762242,193.0,192.96,0.65]
[1753707686646,10.85762242,192.98,192.93,10.85762242]
[1753707686852,6.77794616,192.99,192.94,0.65]
[1753707687051,6.77794616,192.99,192.95,0.65]
[1753707687373,6.77794616,192.99,192.96,0.65]
[1753707687871,6.77794616,192.99,192.93,6.77794616]
[1753707688055,10.61303126,192.98,192.93,0.65]
[1753707688266,3.8350851,192.97,192.93,0.65]
[1753707688486,3.8350851,192.97,192.94,5.83278106]
[1753707688657,43.77794616,192.99,192.95,0.65]
[1753707688845,3.83769095,192.98,192.96,0.65]
[1753707690350,10.84347694,192.99,192.97,0.65]
[1753707691285,10.84347694,192.99,192.95,0.68]
[1753707691459,10.84347694,192.98,192.95,0.68]
[1753707692279,10.84347694,192.98,192.93,0.74]
[1753707692480,47.80347694,192.99,192.93,10.90347694]
[1753707692697,47.80347694,192.99,192.94,0.68]
[1753707693191,16.7252004,192.99,192.94,0.68]
[1753707693493,53.6852004,192.99,192.94,0.68]
[1753707694070,53.6852004,192.99,192.93,0.06]
[1753707694071,0.7,192.98,192.93,0.06]
[1753707694306,10.84347694,192.97,192.94,0.68]
[1753707695006,10.84347694,192.97,192.93,0.06]
[1753707695499,0.03,193.0,192.95,10.84347694]
[1753707695670,0.03,193.0,192.96,11.52347694]
[1753707696696,0.03,193.0,192.96,0.68]
[1753707697168,0.03,193.0,192.97,0.68]
[1753707698584,10.87347694,193.0,192.95,16.02600935]
[1753707698804,10.84347694,192.97,192.93,0.06]
[1753707698972,10.84347694,192.94,192.93,0.06]
[1753707699670,16.72643537,192.94,192.93,0.06]
[1753707701188,53.66643537,192.94,192.93,0.06]
[1753707701384,70.45111934,192.94,192.93,0.06]
[1753707701584,99.92831067,192.94,192.93,0.06]
[1753707702515,16.78468397,192.93,192.89,0.06]
[1753707702806,10.84347694,192.9,192.86,0.06]
[1753707703011,36.84347694,192.87,192.86,0.06]
[1753707703177,40.3217328,192.87,192.86,0.06]
[1753707703378,41.0217328,192.87,192.86,0.06]
[1753707703577,58.09073991,192.87,192.86,0.06]
[1753707703797,63.27557943,192.87,192.86,0.06]
[1753707705915,96.47300043,192.87,192.86,0.06]
[1753707706294,58.81300043,192.87,192.86,0.06]
[1753707706498,79.00831646,192.87,192.86,0.06]
[1753707706906,79.70831646,192.87,192.86,0.06]
[1753707707091,96.77732357,192.87,192.86,0.06]
[1753707707305,100.25420125,192.87,192.86,0.06]
[1753707707937,104.11753305,192.87,192.86,0.06]
[1753707708232,104.50252494,192.87,192.86,0.06]
[1753707708935,17.06900711,192.86,192.85,0.06]
[1753707709233,26.0,192.83,192.69,1.5832]
[1753707709404,10.84347694,192.78,192.72,10.84347694]
[1753707709610,10.84347694,192.78,192.73,11.52347694]
[1753707709611,47.86347694,192.78,192.73,11.52347694]
[1753707709834,37.02,192.78,192.74,0.68]
[1753707710006,37.04,192.79,192.74,11.52347694]
[1753707710217,10.84347694,192.8,192.75,0.68]
[1753707710426,26.0,192.85,192.77,10.84347694]
[1753707710626,10.84347694,192.83,192.78,0.68]
[1753707710932,3.85894276,192.82,192.78,0.68]
[1753707711137,10.84347694,192.83,192.78,5.8671984]
[1753707711338,10.84347694,192.83,192.79,0.68]
[1753707711640,3.8575504,192.82,192.79,0.68]
[1753707711823,14.70102734,192.82,192.76,10.84347694]
[1753707712131,5.18593598,192.83,192.77,0.68]
[1753707712132,47.88347694,192.81,192.77,0.68]
[1753707712651,10.84347694,192.78,192.73,26.68]
[1753707712947,16.03075229,192.78,192.74,0.68]
[1753707713231,47.90347694,192.78,192.74,0.68]
[1753707713642,47.90347694,192.78,192.74,0.74]
[1753707713829,10.84347694,192.76,192.74,0.06]
[1753707714136,10.84347694,192.75,192.74,0.06]
[1753707714539,47.92347694,192.75,192.74,0.06]
[1753707714839,53.11154438,192.75,192.74,0.06]
[1753707715018,53.81154438,192.75,192.74,0.06]
[1753707715347,48.62347694,192.75,192.74,0.06]
[1753707715520,47.92347694,192.75,192.74,0.06]
[1753707715710,53.11154438,192.75,192.74,0.06]
[1753707716130,47.92347694,192.75,192.74,0.06]
[1753707716328,53.81154438,192.75,192.74,0.06]
[1753707716941,70.88055149,192.75,192.74,0.06]
[1753707717121,70.61622835,192.75,192.74,0.06]
[1753707717320,74.46473451,192.75,192.74,0.06]
[1753707718336,74.74905765,192.75,192.74,0.06]
[1753707720615,74.7423816,192.75,192.74,0.06]
[1753707721320,74.7423816,192.75,192.74,1e-08]
[1753707721645,77.42778453,192.75,192.74,1e-08]
[1753707722223,40.32778453,192.75,192.74,1e-08]
[1753707722434,66.32778453,192.75,192.74,1e-08]
[1753707722642,99.73805846,192.75,192.74,1e-08]
[1753707722855,63.33805846,192.75,192.74,1e-08]
[1753707723157,100.43805846,192.75,192.74,1e-08]
[1753707723538,63.33805846,192.75,192.74,1e-08]
[1753707723858,100.45805846,192.75,192.74,1e-08]
[1753707724036,63.33805846,192.75,192.74,1e-08]
[1753707724237,100.43805846,192.75,192.74,1e-08]
[1753707724437,63.33805846,192.75,192.74,1e-08]
[1753707724656,100.7223816,192.75,192.74,1e-08]
[1753707724960,100.45805846,192.75,192.74,1e-08]
[1753707727956,100.43805846,192.75,192.74,1e-08]
[1753707728355,99.75805846,192.75,192.74,1e-08]
[1753707728562,63.33805846,192.75,192.74,1e-08]
[1753707728769,33.29234096,192.75,192.74,1e-08]
[1753707728947,95.69875822,192.75,192.74,1e-08]
[1753707729670,96.37875822,192.75,192.74,1e-08]
[1753707730459,95.69875822,192.75,192.74,1e-08]
[1753707730666,95.71875822,192.75,192.74,1e-08]
[1753707730874,96.37875822,192.75,192.74,1e-08]
[1753707731075,94.26078738,192.75,192.7,0.06]
[1753707731268,42.78468397,192.71,192.7,0.06]
[1753707731477,97.30845022,192.71,192.7,0.06]
[1753707731687,91.19069078,192.71,192.7,0.06]
[1753707731859,96.37983509,192.71,192.7,0.06]
[1753707732183,100.37055362,192.71,192.7,0.06]
[1753707732605,99.69055362,192.71,192.7,0.06]
[1753707733092,99.69055362,192.71,192.7,0.73]
[1753707733093,3.82824737,192.71,192.7,0.73]
[1753707733263,41.06824737,192.71,192.7,0.73]
[1753707733782,47.86600681,192.71,192.7,0.73]
[1753707734284,77.31759453,192.71,192.7,0.06]
[1753707734494,16.78468397,192.67,192.6,1.5675]
[1753707734694,6.79775944,192.61,192.6,2.2375]
[1753707734900,44.11775944,192.61,192.6,2.2375]
[1753707735101,47.94981872,192.61,192.6,2.2375]
[1753707735459,41.15205928,192.61,192.6,2.2375]
[1753707738009,47.94981872,192.61,192.6,1.2375]
[1753707738181,41.15205928,192.61,192.6,0.67]
[1753707738515,41.19205928,192.61,192.6,0.67]
[1753707738714,3.83205928,192.61,192.6,13.48585944]
[1753707739088,3.83205928,192.61,192.6,6.97242314]
[1753707739312,3.83205928,192.61,192.6,13.77018258]
[1753707739513,0.03,192.75,192.6,13.77018258]
[1753707739514,0.03,192.75,192.61,0.28432314]
[1753707739719,0.03,192.75,192.73,6.79775944]
[1753707739918,0.03,192.75,192.74,7.46775944]
[1753707740085,3.8634542,192.75,192.74,7.46775944]
[1753707740614,0.03,192.75,192.74,12.94041919]
[1753707740986,0.03,192.75,192.74,15.11015285]
[1753707741294,0.03,192.79,192.74,9.40298258]
[1753707741492,6.82775944,192.79,192.75,0.67]
[1753707741709,6.79775944,192.78,192.73,26.67]
[1753707741885,6.79775944,192.77,192.73,26.67]
[1753707742225,6.79775944,192.75,192.71,0.67]
[1753707742420,6.79775944,192.74,192.71,0.67]
[1753707742793,10.87268783,192.74,192.71,0.67]
[1753707743000,37.36,192.77,192.68,0.67]
[1753707743001,10.87268783,192.72,192.68,0.67]
[1753707746107,37.42,192.76,192.69,5.47400605]
[1753707746306,3.85600273,192.75,192.72,10.87268783]
[1753707746509,3.85600273,192.75,192.72,0.67]
[1753707746731,3.85600273,192.75,192.72,10.87268783]
[1753707747032,0.03,192.79,192.77,26.0]
[1753707747239,0.03,192.79,192.78,11.82701097]
[1753707747600,45.29648209,192.89,192.78,11.82701097]
[1753707747601,3.85486451,192.83,192.78,11.82701097]
[1753707747804,37.42,192.88,192.82,11.15701097]
[1753707748015,3.85649038,192.87,192.84,10.87268783]
[1753707748215,3.85649038,192.86,192.84,10.87268783]
[1753707748433,3.85649038,192.85,192.84,10.87268783]
[1753707748654,9.04138317,192.87,192.8,0.67]
[1753707748833,3.85649038,192.86,192.82,10.87268783]
[1753707749008,3.85649038,192.86,192.83,10.87268783]
[1753707749908,3.85649038,192.86,192.78,10.87268783]
[1753707749909,10.87268783,192.84,192.78,10.87268783]
[1753707750110,0.68,192.85,192.73,6.3079]
[1753707750111,10.87268783,192.79,192.73,17.18058783]
[1753707750308,10.87268783,192.77,192.72,0.67]
[1753707750541,10.87268783,192.77,192.71,10.87268783]
[1753707750734,10.87268783,192.75,192.69,0.67]
[1753707751038,14.73078687,192.74,192.69,10.87268783]
[1753707751246,11.55268783,192.77,192.71,10.87268783]
[1753707751420,37.42,192.75,192.71,10.87268783]
[1753707751622,3.85930029,192.74,192.72,0.66]
[1753707751822,10.87268783,192.81,192.73,11.53268783]
[1753707752021,37.44,192.79,192.74,5.18833661]
[1753707752337,3.85916022,192.78,192.76,10.87268783]
[1753707752548,37.44,192.81,192.76,10.87268783]
[1753707752843,7.7189813,192.8,192.76,10.87268783]
[1753707753018,7.7189813,192.79,192.76,10.87268783]
[1753707753216,3.85949065,192.78,192.76,10.87268783]
[1753707753420,37.44,192.81,192.77,10.87268783]
[1753707753652,17.46468397,192.84,192.78,0.66]
[1753707753653,3.86012182,192.8,192.78,0.66]
[1753707753842,37.42,192.84,192.79,10.87268783]
[1753707754044,7.71940038,192.83,192.79,10.87268783]
[1753707754353,3.85970019,192.82,192.79,10.87268783]
[1753707754525,3.85970019,192.82,192.77,10.87268783]
[1753707755341,4.54014768,192.81,192.77,10.87268783]
[1753707755647,3.85970019,192.8,192.77,10.87268783]
[1753707755839,16.0586891,192.83,192.77,10.87268783]
[1753707756151,16.0586891,192.83,192.74,0.94432314]
[1753707756152,16.05939058,192.81,192.74,0.66]
[1753707756332,10.87268783,192.76,192.7,11.53268783]
[1753707756854,48.29268783,192.76,192.7,11.53268783]
[1753707757233,10.87268783,192.75,192.69,10.87268783]
[1753707757535,37.42,192.76,192.71,10.87268783]
[1753707757721,37.42,192.76,192.72,10.87268783]
[1753707759242,42.60797691,192.76,192.71,10.93268783]
[1753707759449,43.28797691,192.76,192.71,10.93268783]
[1753707759962,38.1,192.76,192.71,16.12180679]
[1753707760168,37.42,192.76,192.72,10.87268783]
[1753707760353,37.42,192.76,192.75,0.06]
[1753707761065,36.87268783,192.81,192.75,10.93268783]
[1753707761266,37.38,192.8,192.76,10.87268783]
[1753707762056,38.06,192.8,192.75,0.06]
[1753707762255,0.68,192.79,192.75,10.93268783]
[1753707762458,0.68,192.79,192.75,0.06]
[1753707762459,11.55268783,192.78,192.75,0.06]
[1753707762656,0.68,192.77,192.75,0.06]
[1753707762859,37.38,192.76,192.75,0.06]
[1753707764275,70.90517009,192.76,192.75,0.06]
[1753707765871,74.76868959,192.76,192.75,0.06]
[1753707766055,70.90517009,192.76,192.75,0.06]
[1753707766254,77.18317009,192.76,192.75,0.06]
[1753707766470,81.04681441,192.76,192.75,0.06]
[1753707767154,43.26779829,192.76,192.75,0.06]
[1753707767357,42.58779829,192.76,192.75,0.06]
[1753707767869,54.14048612,192.76,192.75,0.06]
[1753707768191,70.92517009,192.76,192.75,0.06]
[1753707768494,100.78895723,192.76,192.75,0.06]
[1753707769503,16.78468397,192.68,192.67,0.06]
[1753707769800,65.0573718,192.68,192.67,0.06]
[1753707770001,65.7373718,192.68,192.67,0.06]
[1753707770177,70.92732405,192.68,192.67,0.06]
[1753707770383,60.05463622,192.68,192.67,0.06]
[1753707770571,70.92732405,192.68,192.67,0.06]
[1753707772266,48.27268783,192.68,192.67,0.06]
[1753707772466,37.5,192.68,192.67,0.06]
[1753707772686,49.05268783,192.68,192.67,0.06]
[1753707773077,48.37268783,192.68,192.67,0.06]
[1753707773484,37.5,192.68,192.67,0.06]
[1753707774371,71.02732405,192.68,192.67,0.06]
[1753707775412,42.68995225,192.68,192.67,0.06]
[1753707775611,37.5,192.68,192.67,0.06]
[1753707776797,26.0,192.75,192.67,11.59268783]
[1753707777106,26.0,192.75,192.7,10.87268783]
[1753707777107,37.5,192.74,192.7,10.87268783]
[1753707777284,38.18,192.74,192.69,10.87268783]
[1753707777692,37.5,192.74,192.69,11.53268783]
[1753707778085,37.5,192.74,192.67,26.72]
[1753707778286,10.87268783,192.72,192.67,0.06]
[1753707778487,5.18941359,192.7,192.67,0.06]
[1753707778736,37.48,192.69,192.67,0.06]
[1753707778915,49.03268783,192.69,192.67,0.06]
[1753707779117,17.46468397,192.68,192.67,0.06]
[1753707779431,11.55268783,192.68,192.67,0.06]
[1753707780095,28.3373718,192.68,192.67,0.06]
[1753707780531,33.52732405,192.68,192.67,0.06]
[1753707780892,22.65463622,192.68,192.67,0.06]
[1753707781091,33.52732405,192.68,192.67,0.06]
[1753707781614,71.00732405,192.68,192.67,0.06]
[1753707782605,71.00732405,192.68,192.63,0.06]
[1753707782606,83.98220468,192.68,192.63,0.06]
[1753707782832,10.87268783,192.64,192.63,0.06]
[1753707783004,65.1173718,192.64,192.63,0.06]
[1753707783320,65.7873718,192.64,192.63,0.06]
[1753707784319,37.46,192.64,192.63,0.06]
[1753707785602,16.06348845,192.65,192.63,0.06]
[1753707785603,10.87268783,192.68,192.63,11.62268783]
[1753707785808,37.44,192.67,192.64,0.69]
[1753707786518,147.6,192.73,192.64,0.69]
[1753707786519,5.18860582,192.73,192.66,10.87268783]
[1753707786715,10.87268783,192.74,192.66,10.87268783]
[1753707786716,37.44,192.72,192.69,10.87268783]
[1753707786929,37.44,192.72,192.69,11.56268783]
[1753707787225,0.67,192.81,192.71,10.87268783]
[1753707787413,0.67,192.81,192.7,0.69]
[1753707787414,0.67,192.81,192.76,10.87268783]
[1753707787617,37.52,192.8,192.76,10.87268783]
[1753707787826,37.52,192.8,192.75,10.87268783]
[1753707788028,49.06268783,192.8,192.75,10.87268783]
[1753707788337,38.19,192.8,192.75,10.87268783]
[1753707788525,5.18699102,192.79,192.75,10.87268783]
[1753707788734,37.54,192.78,192.75,10.87268783]
[1753707789037,37.54,192.78,192.74,10.87268783]
[1753707789825,37.54,192.78,192.7,10.87268783]
[1753707789826,10.87268783,192.76,192.7,10.87268783]
[1753707790038,37.52,192.75,192.7,10.87268783]
[1753707790236,48.39268783,192.75,192.69,10.87268783]
[1753707790419,5.18833661,192.74,192.69,10.87268783]
[1753707790624,11.54268783,192.73,192.68,10.87268783]
[1753707790936,11.54268783,192.73,192.67,26.0]
[1753707790937,37.54,192.72,192.7,10.87268783]
[1753707791136,37.54,192.72,192.69,0.69]
[1753707791137,37.54,192.72,192.71,0.69]
[1753707791340,37.54,192.72,192.69,10.87268783]
[1753707791643,37.54,192.72,192.67,11.56268783]
[1753707791839,10.87268783,192.71,192.64,31.19099463]
[1753707792045,10.87268783,192.71,192.66,10.87268783]
[1753707792342,48.41268783,192.72,192.67,0.69]
[1753707792545,53.6017061,192.72,192.67,0.69]
[1753707792940,44.38848397,192.77,192.7,10.87268783]
[1753707793147,10.87268783,192.75,192.69,10.87268783]
[1753707793349,11.54268783,192.75,192.69,10.87268783]
[1753707793649,10.87268783,192.74,192.67,5.8801]
[1753707793848,37.56,192.73,192.69,10.87268783]
[1753707794046,16.06048612,192.76,192.71,10.87268783]
[1753707794223,48.41268783,192.75,192.69,10.87268783]
[1753707794419,16.06151027,192.73,192.68,10.87268783]
[1753707794741,49.08268783,192.72,192.66,0.28432314]
[1753707794929,49.08268783,192.72,192.67,10.87268783]
[1753707795125,37.54,192.72,192.67,11.56268783]
[1753707795513,37.54,192.72,192.67,10.87268783]
[1753707795716,55.75402952,192.77,192.71,10.87268783]
[1753707795717,16.06071814,192.76,192.71,10.87268783]
[1753707795940,37.54,192.75,192.71,10.87268783]
[1753707796138,11.54268783,192.74,192.68,11.56268783]
[1753707796459,48.41268783,192.75,192.69,10.87268783]
[1753707797148,5.18833661,192.74,192.69,10.87268783]
[1753707797521,5.18833661,192.74,192.69,11.56268783]
[1753707798024,5.18833661,192.74,192.69,10.87268783]
[1753707798246,5.85833661,192.74,192.69,10.87268783]
[1753707798453,16.73102444,192.74,192.69,10.87268783]
[1753707798652,16.73102444,192.74,192.67,0.69]
[1753707798852,16.73102444,192.74,192.69,10.87268783]
[1753707799349,37.54,192.75,192.7,11.56268783]
[1753707799533,37.54,192.75,192.7,10.87268783]
[1753707799731,37.54,192.75,192.71,0.69]
[1753707799952,2.2378,192.82,192.74,10.87268783]
[1753707800253,41.38945198,192.81,192.77,10.87268783]
[1753707800450,41.38945198,192.81,192.76,10.87268783]
[1753707800451,3.86945198,192.8,192.76,10.87268783]
[1753707800828,4.53945198,192.8,192.75,10.87268783]
[1753707801017,20.59975511,192.79,192.73,10.87268783]
[1753707801224,52.26276409,192.78,192.7,0.69]
[1753707801431,10.87268783,192.74,192.68,10.87268783]
[1753707801656,37.54,192.73,192.69,10.87268783]
[1753707802455,38.21,192.73,192.69,10.87268783]
[1753707802746,42.72861144,192.73,192.69,10.87268783]
[1753707803155,43.39861144,192.73,192.68,10.87268783]
[1753707804023,37.54,192.73,192.68,10.87268783]
[1753707804225,42.7286513,192.73,192.69,0.69]
[1753707804448,42.7286513,192.73,192.68,10.87268783]
[1753707804938,43.3986513,192.73,192.68,10.87268783]
[1753707805466,11.54268783,192.72,192.66,10.87268783]
[1753707806549,10.87268783,192.71,192.66,10.87268783]
[1753707806730,37.48,192.7,192.66,10.87268783]
[1753707807071,37.48,192.7,192.65,11.84701097]
[1753707807356,38.15,192.7,192.65,11.15701097]
[1753707807529,3.87415637,192.69,192.65,11.15701097]
[1753707808047,37.48,192.7,192.67,10.87268783]
[1753707808249,37.48,192.7,192.67,0.69]
[1753707808425,37.46,192.71,192.68,11.56268783]
[1753707809625,37.46,192.71,192.69,0.69]
[1753707809928,37.46,192.71,192.69,11.56268783]
[1753707810233,37.46,192.71,192.69,0.69]
[1753707810433,37.46,192.71,192.68,10.87268783]
[1753707810650,37.46,192.71,192.67,10.87268783]
[1753707810830,42.64922181,192.71,192.66,10.87268783]
[1753707811154,0.72,192.7,192.65,11.0148494]
[1753707811656,53.52190964,192.71,192.65,11.6948494]
[1753707811843,9.06363298,192.7,192.65,11.6948494]
[1753707812154,5.18941436,192.7,192.65,11.6948494]
[1753707812560,5.18941436,192.7,192.65,0.96432314]
[1753707812561,3.87387775,192.69,192.65,0.96432314]
[1753707812869,3.87387775,192.69,192.65,11.83701097]
[1753707813056,37.44,192.68,192.65,11.6948494]
[1753707813451,49.03268783,192.68,192.63,0.06]
[1753707813647,10.87268783,192.66,192.63,0.06]
[1753707813863,37.44,192.65,192.63,0.06]
[1753707814059,42.63080816,192.65,192.63,0.06]
[1753707814256,43.35080816,192.65,192.63,0.06]
[1753707814571,38.16,192.65,192.63,0.06]
[1753707814773,10.87268783,192.67,192.63,0.06]
[1753707814774,26.0,192.7,192.64,11.83701097]
[1753707814978,26.0,192.7,192.66,10.87268783]
[1753707814979,41.29341858,192.69,192.66,10.87268783]
[1753707815193,3.87374564,192.68,192.65,10.87268783]
[1753707815482,4.59374564,192.68,192.64,11.15701097]
[1753707815664,3.87374564,192.67,192.64,11.15701097]
[1753707816978,3.87374564,192.67,192.63,0.34432314]
[1753707817149,3.87395733,192.66,192.64,10.87268783]
[1753707817349,42.60974094,192.69,192.64,0.28432314]
[1753707817545,3.87409335,192.68,192.64,11.83701097]
[1753707817774,3.87409335,192.68,192.64,11.15701097]
[1753707818074,3.8741545,192.67,192.64,11.15701097]
[1753707818569,3.8741545,192.67,192.64,0.28432314]
[1753707818754,3.8741545,192.67,192.64,11.15701097]
[1753707819182,3.8741545,192.66,192.64,11.83701097]
[1753707819482,42.60975187,192.69,192.64,16.34801152]
[1753707819666,42.60975187,192.69,192.66,10.87268783]
[1753707819667,3.87407406,192.68,192.66,10.87268783]
[1753707820790,3.87407406,192.68,192.65,11.55268783]
[1753707820956,3.87407406,192.68,192.67,11.15701097]
[1753707821156,37.38,192.72,192.67,11.83701097]
[1753707821453,3.87481684,192.71,192.7,10.87268783]
[1753707821649,3.87481684,192.71,192.7,11.55268783]
[1753707821901,3.87481684,192.71,192.7,11.83701097]
[1753707822257,37.36,192.75,192.7,11.83701097]
[1753707822453,37.36,192.75,192.73,10.87268783]
[1753707822454,3.87561807,192.74,192.73,10.87268783]
[1753707822654,3.87561807,192.74,192.73,11.55268783]
[1753707823073,3.87561807,192.74,192.73,11.83701097]
[1753707823474,3.87561807,192.74,192.7,10.87268783]
[1753707823805,0.72,192.73,192.69,10.87268783]
[1753707823985,3.87561807,192.72,192.69,10.87268783]
[1753707824284,3.87561807,192.72,192.63,6.79276351]
[1753707824285,11.59268783,192.71,192.63,6.79276351]
[1753707824488,16.06237074,192.69,192.64,10.87268783]
[1753707824787,4.59561807,192.68,192.63,10.93268783]
[1753707824972,4.59561807,192.68,192.63,0.06]
[1753707824973,10.87268783,192.68,192.63,0.06]
[1753707825175,15.46818404,192.67,192.63,0.06]
[1753707825480,41.27561662,192.66,192.63,0.06]
[1753707825674,38.12,192.66,192.63,0.06]
[1753707825871,10.87268783,192.68,192.63,10.93268783]
[1753707826074,41.2756572,192.67,192.64,10.87268783]
[1753707826382,15.46834503,192.66,192.63,0.06]
[1753707826570,19.93910547,192.65,192.63,0.06]
[1753707826767,41.2756572,192.64,192.63,0.06]
[1753707827386,41.2756572,192.64,192.63,10.93268783]
[1753707827597,41.2756572,192.64,192.63,11.21701097]
[1753707827800,37.4,192.66,192.63,11.89701097]
[1753707828099,3.87526267,192.65,192.63,0.34432314]
[1753707828296,3.87526267,192.64,192.63,11.21701097]
[1753707828489,4.59526267,192.66,192.63,0.06]
[1753707828694,3.87526267,192.65,192.63,0.06]
[1753707828898,37.4,192.64,192.63,0.06]
[1753707829074,41.27526267,192.64,192.63,0.06]
[1753707830800,3.87526267,192.64,192.63,0.06]
[1753707830999,37.4,192.68,192.63,11.89701097]
[1753707831180,3.87743684,192.67,192.64,10.87268783]
[1753707831900,15.47012467,192.66,192.63,0.06]
[1753707832105,41.27743684,192.65,192.63,0.06]
[1753707832284,14.75012467,192.64,192.63,0.06]
[1753707832598,20.66115457,192.64,192.63,0.06]
[1753707832904,3.87743684,192.64,192.63,0.06]
[1753707833203,3.87743684,192.65,192.63,11.21701097]
[1753707833377,3.87743684,192.64,192.63,11.21701097]
[1753707833678,3.87743684,192.66,192.63,11.21701097]
[1753707833878,3.87743684,192.66,192.64,11.15701097]
[1753707834179,4.59743684,192.66,192.63,0.06]
[1753707834499,3.87743684,192.65,192.63,0.06]
[1753707834685,4.59743684,192.65,192.63,0.06]
[1753707834869,3.87743684,192.64,192.63,0.06]
[1753707835279,4.59743684,192.64,192.63,0.06]
[1753707835806,3.87743684,192.64,192.63,0.06]
[1753707836104,3.87743684,192.66,192.63,0.06]
[1753707836292,3.87743684,192.65,192.63,0.06]
[1753707836609,3.87743684,192.64,192.63,0.06]
[1753707837086,0.72,192.64,192.63,0.06]
[1753707837285,4.59743684,192.64,192.63,0.06]
[1753707838711,3.87743684,192.64,192.63,0.06]
[1753707839009,3.87743684,192.64,192.63,7.54080549]
[1753707839210,37.38,192.66,192.63,0.34432314]
[1753707839415,3.87671011,192.65,192.63,0.06]
[1753707840503,0.72,192.64,192.63,0.06]
[1753707840702,4.59671011,192.64,192.63,0.06]
[1753707841013,9.78774001,192.64,192.63,0.06]
[1753707841410,4.59671011,192.64,192.63,0.06]
[1753707841610,9.78774001,192.64,192.63,0.06]
[1753707841822,16.5885455,192.64,192.63,0.06]
[1753707844194,3.87671011,192.64,192.63,0.06]
[1753707845704,3.87630675,192.64,192.63,0.06]
[1753707846224,4.55630675,192.64,192.63,0.06]
[1753707846399,3.87630675,192.64,192.63,0.77]
[1753707846595,3.87630675,192.64,192.63,7.57080549]
[1753707846804,37.34,192.65,192.63,7.85512863]
[1753707847004,0.68,192.69,192.63,7.85512863]
[1753707847005,37.36,192.67,192.64,6.80080549]